{"text_format":"1","workbook":"xlsx","n_sheets":5,"sheets":["Konformitätserklärung","Liste mit ges. ... Auflagen","Liste Zukaufprodukte","Stoffliste","DE_EN"],"not_rendered":{"charts":0,"images":5,"macros":1,"external_links":1,"defined_names":17,"comments":0,"pivot_tables":0},"unopened":[],"bounds":{"document_bytes":16777216,"sheet_cells":100000,"rows_first":2000,"rows_last":500,"rows_between":2000,"halvings":0,"cell_chars":16384,"cell_head_chars":4096},"cells_cut":0,"cells_raw":0,"read":"whole","date_system":"1900"}

{"sheet":"Konformitätserklärung","index":0,"n_rows":105,"n_cols":17,"rows_kept":105,"cut":false,"hidden":false,"merged":[[5,16,6,16],[11,13,11,15],[12,12,14,15],[17,5,17,15],[19,5,19,15],[31,5,32,5],[31,6,32,10],[31,11,32,11],[31,12,32,13],[31,14,32,15],[15,5,16,6],[16,7,16,9],[16,10,16,13],[15,7,15,9],[15,10,15,13],[29,6,30,10],[29,11,30,11],[23,5,23,15],[24,5,26,5],[24,6,26,10],[15,14,15,15],[16,14,16,15],[28,16,29,16],[20,16,21,16],[103,16,104,16],[67,16,68,16],[7,16,8,16],[58,16,59,16],[50,16,51,16],[45,5,45,15],[46,5,46,7],[46,8,46,10],[46,11,47,11],[46,12,47,12],[46,13,47,15],[47,5,47,7],[47,8,47,10],[41,5,42,5],[41,6,42,10],[41,11,42,11],[28,12,28,13],[28,14,28,15],[20,5,20,15],[21,5,21,15],[22,5,22,15],[24,11,26,11],[24,12,26,13],[24,14,26,15],[0,5,0,15],[1,5,1,15],[2,5,2,9],[2,10,2,15],[3,5,6,9],[12,7,12,9],[12,10,12,11],[10,6,11,6],[7,6,8,6],[9,12,10,12],[9,10,11,11],[6,10,8,11],[10,7,11,9],[9,7,9,9],[3,10,3,11],[3,12,3,15],[4,10,5,11],[4,12,5,15],[29,12,30,13],[29,14,30,15],[6,13,6,15],[7,13,7,15],[8,13,8,15],[29,5,30,5],[27,6,27,10],[27,12,27,13],[27,14,27,15],[28,6,28,10],[13,5,14,6],[13,7,14,9],[13,10,14,11],[33,5,34,5],[33,6,34,10],[33,11,34,11],[33,12,34,13],[33,14,34,15],[35,5,36,5],[35,6,36,10],[35,11,36,11],[35,12,36,13],[35,14,36,15],[37,5,38,5],[37,6,38,10],[37,11,38,11],[37,12,38,13],[37,14,38,15],[39,5,40,5],[39,6,40,10],[39,11,40,11],[39,12,40,13],[39,14,40,15],[41,12,42,13],[41,14,42,15],[44,5,44,15],[50,13,50,15],[51,13,51,15],[57,13,57,15],[58,5,58,7],[58,8,58,10],[58,13,58,15],[48,5,48,7],[48,8,48,10],[48,13,48,15],[49,5,49,7],[49,8,49,10],[49,13,49,15],[50,5,50,7],[51,5,51,7],[52,5,52,7],[53,5,53,7],[55,5,55,7],[56,5,56,7],[57,5,57,7],[52,13,52,15],[53,13,53,15],[65,5,65,7],[65,8,65,10],[65,13,65,15],[66,5,66,7],[66,8,66,10],[66,13,66,15],[55,13,55,15],[56,13,56,15],[59,5,59,15],[62,5,62,15],[63,5,63,7],[63,8,63,10],[63,11,64,11],[63,12,64,12],[63,13,64,15],[64,5,64,7],[64,8,64,10],[69,5,69,7],[69,8,69,10],[69,13,69,15],[70,5,70,7],[70,8,70,10],[70,13,70,15],[67,5,67,7],[67,8,67,10],[67,13,67,15],[68,5,68,7],[68,8,68,10],[68,13,68,15],[73,5,73,7],[73,8,73,10],[73,13,73,15],[74,5,74,7],[74,8,74,10],[74,13,74,15],[71,5,71,7],[71,8,71,10],[71,13,71,15],[72,5,72,7],[72,8,72,10],[72,13,72,15],[77,5,77,7],[77,8,77,10],[77,13,77,15],[78,5,78,7],[78,8,78,10],[78,13,78,15],[75,5,75,7],[75,8,75,10],[75,13,75,15],[76,5,76,7],[76,8,76,10],[76,13,76,15],[81,5,81,7],[81,8,81,10],[81,13,81,15],[82,5,82,7],[82,8,82,10],[82,13,82,15],[79,5,79,7],[79,8,79,10],[79,13,79,15],[80,5,80,7],[80,8,80,10],[80,13,80,15],[85,5,85,7],[85,8,85,10],[85,13,85,15],[86,5,86,7],[86,8,86,10],[86,13,86,15],[83,5,83,7],[83,8,83,10],[83,13,83,15],[84,5,84,7],[84,8,84,10],[84,13,84,15],[89,5,89,7],[89,8,89,10],[89,13,89,15],[90,5,90,7],[90,8,90,10],[90,13,90,15],[87,5,87,7],[87,8,87,10],[87,13,87,15],[88,5,88,7],[88,8,88,10],[88,13,88,15],[93,5,93,7],[93,8,93,10],[93,13,93,15],[94,5,94,7],[94,8,94,10],[94,13,94,15],[91,5,91,7],[91,8,91,10],[91,13,91,15],[92,5,92,7],[92,8,92,10],[92,13,92,15],[0,16,1,16],[22,16,24,16],[7,7,8,9],[9,13,10,15],[104,5,104,15],[18,5,18,15],[102,5,102,7],[102,8,102,10],[102,13,102,15],[103,5,103,7],[103,8,103,10],[103,13,103,15],[100,5,100,7],[100,8,100,10],[100,13,100,15],[101,5,101,7],[101,8,101,10],[101,13,101,15],[95,5,95,7],[95,8,95,10],[95,13,95,15],[99,5,99,7],[99,8,99,10],[99,13,99,15]]}
[null,null,null,null,null,"Lieferantennachweis zu Standard S 132030-1",null,null,null,null,null,null,null,null,null,null,"Bitte geben sie die angefragten Informationen direkt in diese Vorlage ein. Bitte verwenden Sie keine Ausdrucke oder pdf Versionen."]
[null,"IMDS-DeKlaration","X",{"$f":"#REF!","v":{"$error":"#REF!"}},null,"Basisinformation "]
["ja","BOMcheck-Deklaration",null,{"$f":"#REF!","v":{"$error":"#REF!"}},null,"Angaben zum Produkt",null,null,null,null,"Angaben zum Lieferanten"]
["nein","Schaeffler-Format (unten)",null,{"$f":"#REF!","v":{"$error":"#REF!"}},null,"Angabe für ein einzelnes Produkt (soweit wie möglich ausfüllen).\n\nWenn die Konformitätserklärung gleichzeitig für mehrere Produkte gilt, bitte Tabellenblatt \"Liste der Zukaufprodukte\" im Anhang ausfüllen und hier eintragen: \"Tabelle\"",null,null,null,null,"Lieferant/Firma:",null,"Huber GmbH",null,null,null,"→ Schritt 1: "]
[null,"keine Stoffe zu deklarieren",null,{"$f":"#REF!","v":{"$error":"#REF!"}},null,null,null,null,null,null,"Schaeffler-Lieferanten-Nummer",null,321,null,null,null,"Eingabe der Basisinformationen"]
[null,null,null,{"$f":"#REF!","v":{"$error":"#REF!"}},null,null,null,null,null,null,null,null,null,null,null,null,"Wenn der Lieferant noch nicht bei Schaeffler gelistet ist, bitte bei Schaeffler-Lieferanten-Nummer keine eintragen."]
[null,"Schaeffler-Format (unten)",null,{"$f":"#REF!","v":{"$error":"#REF!"}},null,null,null,null,null,null,"Ansprechpartner",null,"Name:","Hr. Manfred Meier"]
[null,"keine Stoffe zu deklarieren",null,null,null,"Lieferant ","Produktbezeichnung","Starlight Ringschraube 1000",null,null,null,null,"email:","m.meier@huber-gmbh.de",null,null,"Bitte wenden Sie sich für Detailinformationen, wie Produktbezeichung und Schaeffler Materialnummer) an Ihren Schaeffler Ansprechpartner."]
[null,"keine Information",null,null,null,null,null,null,null,null,null,null,"Telefon-Nr.:","+49(0)1234512345"]
[null,"siehe Liste mit ges. … Auflagen",null,null,null,null,"Materialnummer",10400123,null,null,"Konformitätserklärung erstellt",null,"Name:","Hr. Manfred Meier"]
[null,null,null,null,null,"Schaeffler","Produktbezeichnung","Ringschraube 1000"]
[null,null,null,null,null,null,null,null,null,null,null,null,"Datum:","2020-11-10"]
[null,null,null,{"$f":"#REF!","v":{"$error":"#REF!"}},null,null,"Materialnummer (13-Steller)","012341234-0000",null,null,"Unterschrift:",null,"Manfred Meier"]
[null,null,null,null,null,"IMDS-ID-Nr. (falls vorhanden)",null,"keine",null,null,"(ggf. mit Stempel)"]
[null,null,null,{"$f":"#REF!","v":{"$error":"#REF!"}}]
[null,null,null,null,null,"Schaeffler Status\n(Bewertung durch Schaeffler)",null,"abgenommem",null,null,"Marcu Marioara",null,null,null,"2020-11-13"]
[null,null,null,null,null,null,null,"Status (in Bewertung/abgenommen/nicht abgenommen)",null,null,"Name",null,null,null,"Datum"]
[null,null,null,{"$f":"#REF!","v":{"$error":"#REF!"}},null,"Konformitätserklärung"]
[null,null,null,null,null,"Material Compliance Informationen für Schaeffler Zukaufprodukte, die",null,null,null,null,null,null,null,null,null,null,"→ Schritt 2:  "]
[]
[null,null,null,null,null,"                               - in oder an Schaeffler Verkaufsprodukten verbleiben",null,null,null,null,null,null,null,null,null,null,"Zugehörige Kategorie für das Zukaufprodukt auswählen  "]
[null,null,null,null,null,"                                - in Fertigungsprozessen und der Instandhaltung eingesetzt, aber nicht in Schaeffler Verkaufsprodukten verbleiben"]
[null,null,null,null,null,"                               - als Packmittel, mit welchem Schaeffler Produkte umhüllt, weiterverwendet, transportiert, gelagert und/oder geschützt werden, dienen.",null,null,null,null,null,null,null,null,null,null,"Ggf. muss die zugehörige Kategorie mit dem Schaeffler Kontakt (z.B. lokaler Einkauf, Stoffverantwortlicher oder Anwendungstechnik) geklärt werden."]
[]
[null,null,null,null,null,"Nr.","Material Compliance (MC)\nAnforderungen",null,null,null,null,"Gilt die Anforderung für das Produkt?\nJa/nein","Erfüllt das Produkt die MC Anforderungen?\nJa/nein",null,"Deklaration:\nIMDS, BOM-Check, \nSchaeffler-Format oder\nkeine Stoffe zu deklarieren"]
[]
[]
[null,null,null,{"$f":"#REF!","v":{"$error":"#REF!"}},null,1,"Schaeffler Grundsatzverbote",null,null,null,null,"ja","ja",null,"keine Stoffe zu deklarieren",null,"→ Schritt 3:  "]
[null,null,null,{"$f":"#REF!","v":{"$error":"#REF!"}},null,2,"Schaeffler Stoffbeschränkungen",null,null,null,null,"ja","ja",null,"keine Stoffe zu deklarieren",null,"Bitte beantworten Sie die Compliance-Fragen unter Berücksichtigung der geltenden Anforderungen "]
[null,null,null,{"$f":"#REF!","v":{"$error":"#REF!"}},null,3,"REACh VO (EG) Nr. 1907/2006\n- beinhaltet unter anderem Berichterstattung von SVHC, Anhang XVII  Verbote und Zulassungsplichten nach Anhang XIV, sowie Plichten zur Registrierung von Stoffen",null,null,null,null,"ja","ja",null,"keine Stoffe zu deklarieren"]
[null,null,null,null,null,null,null,null,null,null,null,null,null,null,null,null,"Bitte weiße Kästchen ausfüllen, graue Kästchen müssen nicht ausgefüllt werden"]
[null,null,null,{"$f":"#REF!","v":{"$error":"#REF!"}},null,4,"Anforderungen der GADSL\n(Global Automotive Declarable Substance List)\n- gilt als Referenzliste auch wenn Produkte nicht für die Automobilindustrie bestimmt sind",null,null,null,null,"ja","ja",null,"keine Stoffe zu deklarieren",null,"Verwenden Sie bitte die Dropdown-Funktion zum Ausfüllen."]
[]
[null,null,null,{"$f":"#REF!","v":{"$error":"#REF!"}},null,5,"ELV RL 2000/53/EG über Altfahrzeuge\n- für Automotive Zukaufprodukte",null,null,null,null,"ja","ja",null,"keine Stoffe zu deklarieren"]
[]
[null,null,null,null,null,6,"RoHS RL 2011/65/EU\n- für NON-Automotive Zukaufprodukte",null,null,null,null,"ja","ja",null,"keine Stoffe zu deklarieren"]
[]
[null,null,null,null,null,7,"Weitere Vorgaben für Chemikalien und Gemische\n- für den Einsatz in der Fertigung, Instandhaltung und in Schaeffler Produkten\n- nicht anwndbar auf Halbfertigteile & Produkte generell",null,null,null,null,"nein"]
[]
[null,null,null,{"$f":"#REF!","v":{"$error":"#REF!"}},null,8,"Weitere Vorgaben für Packmittel\n- ausgenommen für Verpackung, die an den Lieferanten zurück geliefert werden"]
[]
[null,null,null,null,null,9,"Ist der Lieferumfang gemäß den aufgeführten Gesetzen? \n- siehe im Anhang \"Liste mit gesetzlichen und behördlichen Auflagen\" - bitte entsprechend ausfüllen",null,null,null,null,"ja","ja",null,"siehe Liste mit ges. … Auflagen"]
[]
[null,null,null,{"$f":"#REF!","v":{"$error":"#REF!"}}]
[null,null,null,{"$f":"#REF!","v":{"$error":"#REF!"}}]
[null,null,null,{"$f":"#REF!","v":{"$error":"#REF!"}},null,"Schaeffler Berichtsformat - Alternative zu IMDS und BOMcheck"]
[null,null,null,{"$f":"#REF!","v":{"$error":"#REF!"}},null,"Zu deklarierende Inhaltsstoffe",null,null,"CAS Nummer",null,null,"Stoffmenge","Einheit gemäß Stoffliste","Bemerkungen*1"]
[null,null,null,null,null,"- gemäß aktueller Stoffliste (S 132030-1)",null,null,"andere Identifikationsnummer nur wenn keine CAS vorhanden"]
[null,null,null,{"$f":"#REF!","v":{"$error":"#REF!"}},null," Beispiel:                           Blei (lead)",null,null,"7439-92-1",null,null,"z. B. 2,0","% (w/w)","z. B. Messingkäfig"]
[null,null,null,null,null,null,null,null,null,null,null,null,null,null,null,null,"→ Schritt 4:  "]
[null,null,null,null,null,null,null,null,null,null,null,null,null,null,null,null,"Deklarierungspfichtige Stoffe, wie im Beispiel angegeben, deklarieren. "]
[]
[]
[]
[]
[]
[]
[]
[null,null,null,null,null,null,null,null,null,null,null,null,null,null,null,null,"Das ist erforderlich, wenn keine Alternative wie IMDS\noder Stücklistenerklärung existiert"]
[null,null,null,{"$f":"#REF!","v":{"$error":"#REF!"}},null,"*1 = z.B. bei Stoffverboten: Begründung; betroffenes Material im Erzeugnis; RoHS- oder ELV-Ausnahme; bei Chemikalien & Gemischen: Analysenmethode;"]
[]
[null,null,null,{"$f":"#REF!","v":{"$error":"#REF!"}}]
[null,null,null,{"$f":"#REF!","v":{"$error":"#REF!"}},null,"Schaeffler Berichtsformat - Alternative zu IMDS und BOMcheck"]
[null,null,null,{"$f":"#REF!","v":{"$error":"#REF!"}},null,"Zu deklarierende Inhaltsstoffe",null,null,"CAS Nummer",null,null,"Stoffmenge","Einheit gemäß Stoffliste","Bemerkungen*1"]
[null,null,null,null,null,"- gemäß aktueller Stoffliste (S 132030-1)",null,null,"andere Identifikationsnummer nur wenn keine CAS vorhanden"]
[null,null,null,{"$f":"#REF!","v":{"$error":"#REF!"}},null," Beispiel:                           Blei (lead)",null,null,"7439-92-1",null,null,"z. B. 2,0","% (w/w)","z. B. Messingkäfig"]
[null,null,null,{"$f":"#REF!","v":{"$error":"#REF!"}},null,null,null,null,null,null,null,null,null,null,null,null,"→ Schritt 4:  "]
[null,null,null,{"$f":"#REF!","v":{"$error":"#REF!"}},null,null,null,null,null,null,null,null,null,null,null,null,"Deklarierungspfichtige Stoffe, wie im Beispiel angegeben, deklarieren. "]
[null,null,null,{"$f":"#REF!","v":{"$error":"#REF!"}}]
[null,null,null,{"$f":"#REF!","v":{"$error":"#REF!"}}]
[null,null,null,{"$f":"#REF!","v":{"$error":"#REF!"}}]
[null,null,null,{"$f":"#REF!","v":{"$error":"#REF!"}}]
[null,null,null,{"$f":"#REF!","v":{"$error":"#REF!"}}]
[null,null,null,{"$f":"#REF!","v":{"$error":"#REF!"}}]
[null,null,null,{"$f":"#REF!","v":{"$error":"#REF!"}}]
[null,null,null,{"$f":"#REF!","v":{"$error":"#REF!"}}]
[null,null,null,{"$f":"#REF!","v":{"$error":"#REF!"}}]
[null,null,null,{"$f":"#REF!","v":{"$error":"#REF!"}}]
[null,null,null,{"$f":"#REF!","v":{"$error":"#REF!"}}]
[null,null,null,{"$f":"#REF!","v":{"$error":"#REF!"}}]
[null,null,null,{"$f":"#REF!","v":{"$error":"#REF!"}}]
[null,null,null,{"$f":"#REF!","v":{"$error":"#REF!"}}]
[null,null,null,{"$f":"#REF!","v":{"$error":"#REF!"}}]
[null,null,null,{"$f":"#REF!","v":{"$error":"#REF!"}}]
[null,null,null,{"$f":"#REF!","v":{"$error":"#REF!"}}]
[null,null,null,{"$f":"#REF!","v":{"$error":"#REF!"}}]
[null,null,null,{"$f":"#REF!","v":{"$error":"#REF!"}}]
[null,null,null,{"$f":"#REF!","v":{"$error":"#REF!"}}]
[null,null,null,{"$f":"#REF!","v":{"$error":"#REF!"}}]
[]
[]
[]
[]
[]
[]
[null,null,null,{"$f":"#REF!","v":{"$error":"#REF!"}}]
[]
[]
[]
[null,null,null,{"$f":"#REF!","v":{"$error":"#REF!"}}]
[null,null,null,{"$f":"#REF!","v":{"$error":"#REF!"}}]
[null,null,null,{"$f":"#REF!","v":{"$error":"#REF!"}}]
[null,null,null,{"$f":"#REF!","v":{"$error":"#REF!"}}]
[null,null,null,{"$f":"#REF!","v":{"$error":"#REF!"}},null,null,null,null,null,null,null,null,null,null,null,null,"Das ist erforderlich, wenn keine Alternative wie IMDS\noder Stücklistenerklärung existiert"]
[null,null,null,{"$f":"#REF!","v":{"$error":"#REF!"}},null,"*1 = z.B. bei Stoffverboten: Begründung; betroffenes Material im Erzeugnis; RoHS- oder ELV-Ausnahme; bei Chemikalien & Gemischen: Analysenmethode;"]

{"sheet":"Liste mit ges. ... Auflagen","index":1,"n_rows":84,"n_cols":10,"rows_kept":84,"cut":false,"hidden":false,"merged":[[77,0,78,0],[79,0,83,0],[59,7,60,7],[59,8,60,8],[67,0,69,0],[70,0,72,0],[73,0,75,0],[64,0,66,0],[28,0,30,0],[31,0,37,0],[38,0,39,0],[40,0,62,0],[1,0,12,0],[13,0,17,0],[18,0,23,0],[24,0,25,0],[26,0,27,0]]}
["Thema","Liste mit gesetzlichen und behördlichen Auflagen\n(mitgeltend zu den gelisteten Regularien sind ihre Änderungsregularien und Anhänge, zum Zeitpunkt der Stellungnahme; Konformiätserklärungen gelten für Hauptregularie, deren Änderungsregulierungen und Anhänge","Land","Gültigkeit \n(siehe Dropdown Menü)","Konform\n(siehe Dropdown Menü)","Nicht bekannt","Kommentar"]
["ROHS","Richtlinie 2011/65/EU des Europäischen Parlaments und des Rates vom 8. Juni 2011 zur Beschränkung der Verwendung bestimmter gefährlicher Stoffe in Elektro- und Elektronikgeräten - [EU ROHS]","EU",{"$f":"Konformitätserklärung!L36","v":"ja"},{"$f":"Konformitätserklärung!M36","v":"ja"},null,null,null,null,"ja"]
[null,"Act for Resource Recycling of Electrical and Electronic Equipment and Vehicles; Act No. 6319 - Resource Recycling - [Koreea ROHS]","KR","nein",null,null,null,null,null,"nein"]
[null,"MIIT Order 32  Administrative Measures for the Restriction of the Use of Hazardous Substances in Electrical and Electronic Product togther with GB/T 26572 - [China ROHS]","CN","nein"]
[null,"e-waste (Management and Handling) Rules 2011 (India RoHS)","IN","nein"]
[null,"Electrical and electronic equipment that may contain hazardous substances: restriction of the use of certain hazardous substances; TIS 2368-2551; 26.05.2008 - [Thailand ROHS]","TH","nein"]
[null,"CNS15663: Guidance for the reduction of restricted chemical substances in electrical and electronic equipment -[Taiwan ROHS]","TW","nein"]
[null,"Circular 30/2011/TT-BCT Temporary Regulation on permission limits of some hazardous chemicals in electrical and electronic products - [Vietnam ROHS]","VN","nein"]
[null,"Atık Elektrikli ve Elektronik Eşyaların (AEEE) Kontrolü Yönetmeliği [Turkish WEEE and RoHS]; 22.05.2012.","TR","nein"]
[null,"Environmental Protection and Management Act (Amendment of Second Schedule) Order 2016 - [Singapore ROHS]","SG","nein"]
[null,"Emirates control scheme to restrict the use of hazardous materials in electronic and electrical devices. Decision No. 10/2017 - [United Arab Emirates ROHS]","UAE","nein"]
[null,"Law for Promotion of Effective Utilization of Resources in Japan (Japanese Recycling Law) of 2001 and the mandatory industry standard JIS C 0950 of 2008 - [Japan ROHS]","JP","nein"]
[null,"Technical Regulation \"On Restriction of Hazardous Substances in Electrical and Radioelectronic Products\" (TR 037/2016) - [Eurasian Economic Union ROHS]","EAEU","nein"]
["ELV","Act No. 8405 of 2007-04-27 (Korean RoHS/ELV) ","KR","nein"]
[null,"Richtlinie 2000/53/EG des Europäischen Parlaments und des Rates vom 18. September 2000 über Altfahrzeuge ","EU",{"$f":"Konformitätserklärung!L34","v":"ja"},{"$f":"Konformitätserklärung!M34","v":"ja"}]
[null,"Public Standard GB/T 30512-2014 “Requirements for Prohibited Substances on Automobiles” ","CN","nein"]
[null,"GB 22128-2008 (Chinese ELV)","CN","nein"]
[null,"Automotive Industry Standard 129 (AIS-129), published on 1 March 2015 by the Automotive Research Association of India (ARAI)","IN","nein"]
["REACH","Verordnung (EG) Nr. 1907/2006 des Europäischen Parlaments und des Rates vom 18. Dezember 2006 zur Registrierung, Bewertung, Zulassung und Beschränkung chemischer Stoffe (REACH)","EU",{"$f":"Konformitätserklärung!L30","v":"ja"},{"$f":"Konformitätserklärung!M30","v":"ja"}]
[null,"Kemikaaliseadus; Chemicals Act; 01.12.2015","EE","nein"]
[null,"The Measures for Environmental Administration of New Chemical Substances (China MEP Order 7) (China REACH) Issued in Jan 2010 , Came into force on 15 Oct 2010","CN","nein"]
[null,"KKDIK Regulation (\"Turkey REACH\"), 23 December 2017","TR","nein"]
[null,"Act on the Registration and Evaluation of Chemicals; Act No. 11789; Korea REACH; 22.05.2013.","KR","nein"]
[null,"Toxic and Chemical Substances of Concern Control Act (TCSCCA)","TW","nein"]
["Konflikt Mineralien","Dodd Frank Act Section 1502","US","ja","ja"]
[null,"Verordnung (EU) 2017/821 des Europäischen Parlaments und des Rates vom 17. Mai 2017 zur Festlegung von Pflichten zur Erfüllung der Sorgfaltspflichten in der Lieferkette für Unionseinführer von Zinn, Tantal, Wolfram, deren Erzen und Gold aus Konflikt- und Hochrisikogebieten","EU","ja","ja"]
["Biozide","Verordnung (EU) Nr. 528/2012 des Europäischen Parlaments und des Rates vom 22. Mai 2012 über die Bereitstellung auf dem Markt und die Verwendung von Biozidprodukten","EU","nein"]
[null,"Consumer Chemical products and Biocides Safety Act (K-BPR)","KR","nein"]
["Batterien/ Akkumulatoren","Richtlinie 2006/66/EG des Europäischen Parlaments und des Rates vom 6. September 2006 über Batterien und Akkumulatoren sowie Altbatterien und Altakkumulatoren","EU","nein"]
[null,"Chinese Standard GB 24427-2009 \"Limitation of mercury, cadmium and lead contents for alkaline and non-alkaline zinc manganese dioxide batteries\" ","CN","nein"]
[null,"Chinese Standard GB24428-2009 \"Limitation of mercury for zinc silver oxide, zinc oxygen and zinc manganese dioxide button batteries\", cadmium and lead contents for alkaline and non-alkaline zinc manganese dioxide batteries\"-requirements","CN","nein"]
["Gefährliche Substanzen","Verordnung (EU) Nr. 649/2012 des Europäischen Parlaments und des Rates vom 4. Juli 2012 über die Aus- und Einfuhr gefährlicher Chemikalien ","EU","ja","ja"]
[null,"Verordnung (EU) 2017/852 des Europäischen Parlaments und des Rates vom 17. Mai 2017 über Quecksilber","EU","nein"]
[null,"Verordnung (EU) Nr. 2019/1021 des Europäischen Parlaments und des Rates vom 20. Juni 2019 über persistente organische Schadstoffe (POP)","EU","ja","ja"]
[null,"Regulations relating to restrictions on the manufacture, import, export, sale and use of chemicals and other products hazardous to health and the environment (Product Regulation).","NO","nein"]
[null,"Health and Safety Code - HSC Safe Drinking Water and Toxic Enforcement Act of 1986 Division 20. Misc. Health and Safety Provisions [2400-26204]California Proposition 65","US","ja","ja"]
[null,"California Safer Consumer Product regulations \nDIVISION 4.5, TITLE 22, CALIFORNIA CODE OF REGULATIONS CHAPTER 55.  SAFER CONSUMER PRODUCTS \n(mandeted to AB-1879), effective October 1, 2013","US","ja","ja"]
[null,"Canada gazette Vol. 143, No. 252","CA","nein"]
["CE Kenn-zeichnung","Richtlinie 2006/42/EG des Europäischen Parlaments und des Rates vom 17. Mai 2006 über Maschinen","EU","ja","ja"]
["CE Marking","The Administrative Measures for the Restriction of the Use of Hazardous Substances in Electrical and Electronic Products (China RoHS 2). SJ/T 11363-2006  ","CN","nein"]
["Chemikalien","Gesetz zum Schutz vor gefährlichen Stoffen (Chemikaliengesetz; Chem G)","DE","ja","ja"]
[null,"Verordnung über Verbot und Beschränkungen des Inverkehrbringens und über die Abgabe bestimmter Stoffe, Gemische und Erzeugnisse nach dem Chemikaliengesetz (Chemikalienverbotsverordnung; Chem Verbots V)","DE","ja","ja"]
[null,"Verordnung zur Sanktionsbewehrung gemeinschafts- oder unionsrechtlicher Verordnungen auf dem Gebiet der Chemikaliensicherheit (ChemSanktionsV)","DE","ja","ja"]
[null,"813.1; Bundesgesetz über den Schutz vor gefährlichen Stoffen und Zubereitungen","CH","ja","ja"]
[null,"814.81; Verordnung zur Reduktion von Risiken beim Umgang mit bestimmten besonders gefährlichen Stoffen, Zubereitungen und Gegenständen; Chemikalien-Risikoreduktions-Verordnung ","CH","ja","ja"]
[null,"Bundesgesetz über den Schutz des Menschen und der Umwelt vor Chemikalien (Chemikaliengesetz 1996 - ChemG 1996). BGBl. I Nr. 53/1997; 15. Mai 1997","AT","ja","ja"]
[null,"Chemikalien-Verbotsverordnung 2003 - ChemVerbotsV 2003; Verordnung des Bundesministers für Land- und Forstwirtschaft, Umwelt und Wasserwirtschaft über weitere Verbote und Beschränkungen bestimmter gefährlicher Stoffe, Zubereitungen und Fertigwaren; BGBl. II Nr. 477/2003; 14.10.2003","AT","ja","ja"]
[null,"Verordnung (EG) Nr. 1272/2008 des Europäischen Parlaments und des Rates vom 16. Dezember 2008 über die Einstufung, Kennzeichnung und Verpackung von Stoffen und Gemischen","EU","ja","ja"]
[null,"Hazardous Substances Law 5753 of 1993","IL","nein"]
[null,"Regulation 2009 No. 716 \"Health and Safety - The Chemicals (Hazard Information and Packaging for Supply) Regulations 2009\"","UK","ja","ja"]
[null,"Chemical Substance Control Law (CSCL); 16.04.1974.","JP","nein"]
[null,"Industrial Safety and Health Act (ISHA); 01.10.1972.","JP","nein"]
[null,"Poisonous and Deleterious Substances Control Act (PDSCA); 01.05.1954","JP","nein"]
[null,"Hazardous Substance Control Act (HSCA); Hazardous Substance Act B.E. 2535 (07.04.1992, first version)","TH","nein"]
[null,"Decree No. 108/2008/ND-CP; Detailing and Guiding the Implementation of a number of articles of the chemical law; 07.10.2008.","AP","nein"]
[null,"Toxic Substances and Hazardous and Nuclear Wastes Control Act of 1990 (Republic Act No. 6969); 26.10.1990","AP","nein"]
[null,"Act on Confirmation, etc. of Release Amounts of Specific Chemical Substances in the Environment and Promotion of Improvements to the Management Thereof (PRTR);\n13.07.1999","AP","nein"]
[null,"Hazardous Chemicals Control Ordinance (Chap. 595; L.N. 7 of 2008); 01.04.2008","HK","nein"]
[null,"Verordnung (EU) Nr. 517/2014 des Europäischen Parlaments und des Rates vom 16. April 2014 über fluorierte Treibhausgase ","EU","nein"]
[null,"Prohibition of Certain Toxic Substances Regulations, 2005 (SOR/SOR/2005-41. Published in Canada Gazette Part II, 2006-11-29 Vol.140, No.24, 25) SFS 1985:840 ","CA","nein"]
[null,"Prohibition of Certain Toxic Substances Regulations, 2005 (SOR/SOR/2005-41. Published in Canada Gazette Part II, 2006-11-29 Vol. 140, No. 24","CA","nein"]
[null,"Toxic Substances Control Act of 1976 (TSCA)","US","ja","ja"]
[null,"Prohibition of Certain Toxic Substances Regulations, 2005 (SOR/SOR/2005-41)","CA","nein"]
["Ökodesign","Richtlinie 2005/32/EG des Europäischen Parlaments und des Rates vom 6. Juli 2005 zur Schaffung eines Rahmens für die Festlegung von Anforderungen an die umweltgerechte Gestaltung energiebetriebener Produkte ","EU","nein"]
["Lebensmittel","Verordnung (EG) Nr. 466/2001 der Kommission vom 8. März 2001 zur Festsetzung der Höchstgehalte für bestimmte Kontaminanten in Lebensmitteln ","EU","nein"]
[null,"Richtlinie 2002/72/EG der Kommission vom 6. August 2002 über Materialien und Gegenstände aus Kunststoff, die dazu bestimmt sind, mit Lebensmitteln in Berührung zu kommen","EU","nein"]
[null,"Verordnung (EU) Nr. 10/2011 der Kommission vom 14. Januar 2011 über Materialien und Gegenstände aus Kunststoff, die dazu bestimmt sind, mit Lebensmitteln in Berührung zu kommen ","EU","nein"]
["Medizin Produkte","Verordnung (EU) Nr. 722/2012 der Kommission vom 8. August 2012 über besondere Anforderungen betreffend die in der Richtlinie 90/385/EWG bzw. 93/42/EWG des Rates festgelegten Anforderungen an unter Verwendung von Gewebe tierischen Ursprungs hergestellte aktive implantierbare medizinische Geräte und Medizinprodukte ","EU","nein"]
[null,"Richtlinie 90/385/EWG des Rates vom 20. Juni 1990 zur Angleichung der Rechtsvorschriften der Mitgliedstaaten über aktive implantierbare medizinische Geräte","EU","nein"]
[null,"Richtlinie 93/42/EWG des Rates vom 14. Juni 1993 über Medizinprodukte","EU","nein"]
["Ozonschicht schädigende Substanzen","Verordnung (EG) Nr. 1005/2009 des Europäischen Parlaments und des Rates vom 16. September 2009 über Stoffe, die zum Abbau der Ozonschicht führen","EU","nein"]
[null,"Act on the Protection of the Ozone Layer Through the Control of Specified Substances and Other Measures; 01.01.1989.","AP","nein"]
[null,"Clean Air Act (US)","US","nein"]
["Verpackungen","Richtlinie 94/62/EG des Europäischen Parlaments und des Rates vom 20. Dezember 1994 über Verpackungen und Verpackungsabfälle","EU","ja","ja"]
[null,"Model Toxics in Packgaging Legislation","US","ja","ja"]
[null,"California State Health and Safety Code 25214.11","US","ja","ja"]
["Rezykling","Act on the Promotion of Saving and Recycling of Resources; Act No. 6653; 04.02.2002.","KR","nein"]
["Schiffe","Verordnung (EU) Nr. 1257/2013 des Europäischen Parlaments und des Rates vom 20. November 2013 über das Recycling von Schiffen","EU","nein"]
[null,"Verordnung (EG) Nr. 782/2003 des Europäischen Parlaments und des Rates vom 14. April 2003 über das Verbot zinnorganischer Verbindungen auf Schiffen","EU","nein"]
["Typ-genehmigung","Richtlinie 2007/46/EG des Europäischen Parlaments und des Rates vom 5. September 2007 zur Schaffung eines Rahmens für die Genehmigung von Kraftfahrzeugen und Kraftfahrzeuganhängern sowie von Systemen, Bauteilen und selbstständigen technischen Einheiten für diese Fahrzeuge","EU","nein"]
[null,"Richtlinie 2005/64/EG des Europäischen Parlaments und des Rates vom 26. Oktober 2005 über die Typgenehmigung für Kraftfahrzeuge hinsichtlich ihrer Wiederverwendbarkeit, Recyclingfähigkeit und Verwertbarkeit","EU","nein"]
[null,"Richtlinie 70/156/EWG des Rates vom 6. Februar 1970 zur Angleichung der Rechtsvorschriften der Mitgliedstaaten über die Betriebserlaubnis für Kraftfahrzeuge und Kraftfahrzeuganhänger","EU","nein"]
[null,"Richtlinie 2002/24/EG des Europäischen Parlaments und des Rates vom 18. März 2002 über die Typgenehmigung für zweirädrige oder dreirädrige Kraftfahrzeuge ","EU","nein"]
[null,"China ELV (order No. 38)","CN","nein"]

{"sheet":"Liste Zukaufprodukte","index":2,"n_rows":5,"n_cols":7,"rows_kept":5,"cut":false,"hidden":false,"merged":[[0,0,0,7],[1,0,29,0],[1,7,29,7],[29,1,29,6],[1,5,3,6],[1,1,1,2],[2,1,3,2],[1,3,1,4]]}
["Liste der Zukaufprodukte\n(Ergänzung zur Konformitätserklärung)"]
[null,"Lieferant/Firma",null,{"$f":"Konformitätserklärung!M4","v":"Huber GmbH"},null,"   S 132030-1 - aktuelle Version"]
[null,"Konformitätserklärung erstellt:",null,"Name:",{"$f":"Konformitätserklärung!N10","v":"Hr. Manfred Meier"}]
[null,null,null,"Datum:",{"$f":"Konformitätserklärung!N12","v":44145}]
[null,"Lfd. Nr.","Lieferanten Materialnummer","Schaeffler Materialnummer\n(SAP 13-Steller)","Material / Bezeichnung / Zeichnungsnummer","IMDS ID-Nummer \n(falls zutreffend)","Anmerkung / Ansprechpartner"]

{"sheet":"Stoffliste","index":3,"n_rows":81,"n_cols":7,"rows_kept":81,"cut":false,"hidden":false,"merged":[[79,0,79,6],[80,0,80,6],[63,5,64,5],[63,4,64,4],[64,8,64,9],[67,8,67,9],[74,1,74,6],[78,0,78,6],[66,0,67,0],[66,1,67,1],[66,2,67,2],[66,3,67,3],[66,4,67,4],[63,0,64,0],[63,1,64,1],[63,2,64,2],[55,5,55,6],[56,5,56,6],[23,1,23,6],[0,0,0,6],[2,1,2,6],[9,1,9,6],[29,1,29,6],[30,5,31,5],[55,0,56,0],[55,1,56,1],[55,2,56,2],[55,3,56,3],[55,4,56,4],[53,0,54,0],[53,1,54,1],[53,2,54,2],[53,3,54,3],[53,4,54,4],[32,1,32,6],[49,1,49,6],[52,1,52,6],[53,5,53,6],[54,5,54,6],[63,3,64,3],[63,6,64,6],[57,0,58,0],[59,1,59,6],[60,1,60,6],[61,1,61,6],[62,1,62,6],[57,5,57,6],[57,1,58,1],[57,2,58,2],[57,3,58,3],[57,4,58,4],[58,5,58,6]]}
["Stoffliste \n- Status vom 13.01.2020 -"]
["Lfd. Nr.","relevante Inhaltsstoffe","CAS-Nummer","Bewer-tung","Grenzwert","Anmerkung / legaler Hintergrund","Beispielanwendung / Beispiel"]
[1,"Schaeffler Grundsatzverbote - gilt für alle Erzeugnisse, Chemikalien, Gemische und auch für Verpackungsmaterialien -"]
[null,"Stoffe der Gefahrenklassen:\n- Karzinogenität, Karz. 1A, Karz. 1B (H350 ff)\n- Keimzellen-Mutagenität, Mutag. 1A, Mutag. 1B (H241)\n- Reproduktionstoxizität, Repr. 1A, Repr. 1B (H360 ff)","-","P","b)","CLP Verordnung (EG) Nr. 1272/2008\n- siehe Hinweis unter Fußnote b) -"]
[null,"Stoffe mit akuter Toxizität, Akut Tox. 1, 2, 3  (ehemals: sehr giftige oder giftige Stoffe)","-","P","b)","CLP Verordnung (EG) Nr. 1272/2008\n- siehe Hinweis unter Fußnote b) -","-"]
[null,"Entzündbare Stoffe mit H-Sätzen H220, H222, H224 (ehemals: hochentzündlich)","-","P","b)","CLP Verordnung (EG) Nr. 1272/2008\n- siehe Hinweis unter Fußnote b) -","-"]
[null,"Explosive Stoffe mit H-Sätzen H200, H201, H202, H203, H204, H240, H241 (ehemals: explosionsgefährlich)","-","P","b)","CLP Verordnung (EG) Nr. 1272/2008\n- siehe Hinweis unter Fußnote b) -","-"]
[null,"Radioaktive Stoffe, alle Verbindungen inkl. Verunreinigungen in Metallen","-","P","a)","Strahlenschutzverordnung\n(StrSchV), Atomgesetz","z.B. Verunreinigungen in Stahl"]
[null,"Ozonschädigende Stoffe, alle Verbindungen","-","P","a)","EU-Ozonschichtverordnung (EG) Nr. 1005/2009,\nClean Air Act Klassen I u. II","-"]
[2,"Schaeffler Beschränkungen - gilt für alle Erzeugnisse, Chemikalien, Gemische und auch für Verpackungsmaterialien -","-",null,"-","-","-"]
[null,"Stoffe der Gefahrenklassen:\n- Karzinogenität, Karz. 2 (H351)\n- Keimzellen-Mutagenität, Mutag. 2 (H241)\n- Reproduktionstoxizität, Repr. 2 (H361 ff)","-","D","b)","CLP Verordnung (EG) Nr. 1272/2008\n- siehe Hinweis unter Fußnote b) -","-"]
[null,"Stoffe, die Sensibilisierung der Atemwege oder der Haut verursachen","-","D","b)","CLP Verordnung (EG) Nr. 1272/2008\n- siehe Hinweis unter Fußnote b) -","z.B. Metalllegierungen (Nickel),\nLacke, Klebstoffe"]
[null,"Konflikt Mineralien (Tantal, Zinn, Wolfram, Gold, Cobalt und deren Derivate) aus der Demokratischen Republik Kongo und umliegenden Ländern","-","D","a)","United States H.R. 4173 - \"Conflict Minerals\" bzw. \"Dodd-Frank-Act\":\nSection 1502 of H.R. 4173"," z.B. Stahl"]
[null,"Alkylphenole und Alkylphenol Ethoxylate","-","D","a)","-","z.B. Kunststoffe, Reiniger"]
[null,"Azofarbstoffe mit aromatischen Aminen","-","D","a)",null,"z.B. Kunststoffe\nBeschichtungen, Farben, Lacke, Farbstoffe"]
[null,"Halogenierte Kohlenwasserstoffe (inkl. Stoffe der POP-Verordnung (EG) Nr. 850/2004) (EU) 2019/1021","-","D","a)","Verordnung über persistente organische Schadstoffe (EG) Nr. 850/2004 (EU) 2019/1021","z.B. Flammschutzmittel, Lösungsmittel, Schmierstoffe, Kunststoffe"]
[null,"Nitrosamine oder Stoffe, die durch Reaktionen Nitrosamine bilden","-","D","a)","-","z.B. Korrosionsschutzmittel, Kühlschmierstoffe (sekundäre Amine)"]
[null,"organisch gebundenes Silizium","-","D","c)","für Polydimethylsiloxan und organisch gebundene Si-Verbindungen gelten die Anforderung der VKIS-VSI-IGM-BGMH-Stoffliste","z.B. Korrosionsschutzmittel, Schmierstoffe, Kühlschmierstoffe"]
[null,"Biozide","-","D","c)","für Biozide gelten die Anforderung der VKIS-VSI-IGM-BGMH-Stoffliste","z.B. Korrosionsschutzmittel, Kühlschmierstoffe, Farben, Lacke, Verpackungen aus Holz"]
[null,"Trikresylphosphat und Isomere (TKP)","78-30-8; 1330-78-5","D","a)","-","z.B. Weichmacher u. Flammschutzmittel in Kunststoffen; Schmierstoffe"]
[null,"4,4-Isopropylidendiphenol (Bisphenol A)","80-05-7","D","a)","-","z.B. Kunststoffe, Harze, Farben, Lacke, Klebstoffe"]
[null,"Tierische Rohstoffe","-","D",null,"jeweils aktuelle Veröffentlichung der EU","z.B. Schmierstoffe"]
[null,"Polyvinylchlorid (PVC)","9002-86-2","D","a)","-","z.B. Kabelisolierung, Verpackungen"]
[null,"bromierte Flammhemmer, alle Verbindungen"]
[null,"Polybromierte Biphenyle (PBB)","Stoffgruppe","P","a)","-","z.B. Kunststoffe"]
[null,"Polybromierte Diphenylether (PBDE) mit Deca-, Penta und Octabromdiphenylether","Stoffgruppe","P","a)","-","z.B. Kunststoffe"]
[null,"Tetrabrombisphenol A (TBBPA)"," 79-94-7","D","a)","-","z.B. Flammschutzmittel in Kunststoffen und elektrischen / elektronischen Bauteilen"]
[null,"sonstige bromierte Flammschutzmittel","-","D","a)","-","-"]
[null,"Perfluoroctansäure (PFOA)\nund Salze","z.B. \n335-67-1","P","25 ppb","Verordnung (EU) 2019/1021","z.B. Kunststoffe, Schmierstoffe, Lacke, Beschichtungen"]
[null,"Polyzyklische Aromatische Kohlenwasserstoffe (PAK)",null,null,"-","-"]
[null,"Benzo(a)pyren (BaP)","50-32-8","P","a)","PAK´s nach Liste der \"Priority Pollutants\" der EPA; \nGemische: \n- BaP max. 50 ppm (EPA Methode 610)\n- Summe PAK´s 3% DMSO-Extrakt für das Grundöl (Methode IP 346)\nPolymere, Lacke, Beschichtungen: \n- BaP max. 20 ppm (Methode ZEK01.2-08)\n- Summe PAK´s max. 200 ppm (Methode ZEK01.2-08)","z.B. Kunststoffe, Schmierstoffe, Lacke, Beschichtungen"]
[null,"Summe aller EPA PAK´s","Stoffgruppe","D","a)",null,"z.B. Kunststoffe, Schmierstoffe, Lacke, Beschichtungen"]
[null,"Phthalate, alle Verbindungen"]
[null,"Di-(2-ethylhexyl)phthalat (DEHP), Dioctylphthalat (DOP)","117-81-7","P","a)","Verordnung (EG) Nr. 1907/2006 (mit relevanten Anhängen und Änderungen)","z.B. Weichmacher in Kunststoffen"]
[null,"Di-n-octylphthalat (DNOP)","117-84-0","P","a)","Verordnung (EG) Nr. 1907/2006 (mit relevanten Anhängen und Änderungen)","z.B. Weichmacher in Kunststoffen"]
[null,"Dibutylphthalat (DBP)","84-74-2","P","a)","Verordnung (EG) Nr. 1907/2006 (mit relevanten Anhängen und Änderungen)","z.B. Weichmacher in Kunststoffen"]
[null,"Butylbenzylphthalat (BBP)","85-68-7","P","a)","Verordnung (EG) Nr. 1907/2006 (mit relevanten Anhängen und Änderungen)","z.B. Weichmacher in Kunststoffen"]
[null,"Diisononylphthalat (DINP)","28553-12-0","P","a)","Verordnung (EG) Nr. 1907/2006 (mit relevanten Anhängen und Änderungen)","z.B. Weichmacher in Kunststoffen"]
[null,"Diisodecylphthalat (DIDP)","26761-40-0","P","a)","Verordnung (EG) Nr. 1907/2006 (mit relevanten Anhängen und Änderungen)","z.B. Weichmacher in Kunststoffen"]
[null,"Bis(2-ethylhexyl)isophthalat (DOIP)","137-89-3","P","a)","-","z.B. Weichmacher in Kunststoffen"]
[null,"Bis(2-methoxyethyl)phthalat","117-82-8","P","a)","-","z.B. Weichmacher in Kunststoffen"]
[null,"Diphenylphthalat","84-62-8","P","a)","-","z.B. Weichmacher in Kunststoffen"]
[null,"Dipentylphthalat","131-18-0","P","a)","-","z.B. Weichmacher in Kunststoffen"]
[null,"Diisopentylphthalat","605-50-5","P","a)","-","z.B. Weichmacher in Kunststoffen"]
[null,"Bis(3,5,5-trimethylhexyl)phthalat","14103-61-8","P","a)","-","z.B. Weichmacher in Kunststoffen"]
[null,"Diisobutylphthalat (DIBP)","84-69-5","P","a)","-","z.B. Weichmacher in Kunststoffen"]
[null,"1,2-Benzenedicarboxylic acid, di-C6-8-branched alkyl esters, C7-rich","71888-89-6","P","a)","Verordnung (EG) Nr. 1907/2006 (mit relevanten Anhängen und Änderungen)","z.B. Weichmacher in Kunststoffen"]
[null,"1,2-Benzenedicarboxylic acid, di-C7-11-branched and linear alkyl esters","68515-42-4","P","a)","Verordnung (EG) Nr. 1907/2006 (mit relevanten Anhängen und Änderungen)","z.B. Weichmacher in Kunststoffen"]
[null,"sonstige Phthalate",null,"D","a)","-","z.B. Weichmacher in Kunststoffen"]
[null,"Organische Zinnverbindungen, alle Verbindungen"]
[null,"Triorganische Zinnverbindungen",null,"P","a)","Verordnung (EG) Nr. 1907/2006 (Anhang XVII), Entscheidung 2009/425/EG (EG) 1907/2006","z.B. Kunststoffe, Harze, Farben, Lacke, Farbstoffe"]
[null,"sonstige organische Zinnverbindungen",null,"D","a)","-","z.B. Kunststoffe, Harze, Farben, Lacke, Farbstoffe"]
[3,"REACh Verordnung (EG) Nr. 1907/2006 - gilt für alle Erzeugnisse, Chemikalien, Gemische und auch für Verpackungsmaterialien -\nLinks siehe letzte Spalte",null,null,"-",null,"-"]
[null,"Stoffe der SVHC Kandidatenliste nach REACh",null,"D","0,1% (w/w) pro Produkt","Jeweils zum Zeitpunkt der Deklaration gültige Version der Kandidatenliste. "]
[null,null,null,null,null,"http://echa.europa.eu/chem_data/authorisation_process/candidate_list_table_en.asp"]
[null,"Zulassungspflichtige Stoffe des Anhangs XIV",null,"P","a)","Zulassungspflichtige Stoffe des Anh. XIV sind in Schaeffler Produkten verboten sofern für die entsprechende Anwendung keine Zulassung genehmigt wurde."]
[null,null,null,null,null,"http://echa.europa.eu/chem_data/authorisation_process/annex_xiv_rec_en.asp"]
[null,"Verwendungsverbote nach REACh Anhang XVII",null,"P","a)","Jeweils zum Zeitpunkt der Deklaration gültige Version des Anhangs XVII"]
[null,null,null,null,null,"http://echa.europa.eu/legislation/reach_legislation_en.asp"]
[4,"GADSL - Global Automotive Declarable Substance List \n- gilt für alle Zukaufprodukte die in Schaeffler Verkaufsprodukten verwendet werden sollen, auch wenn diese nicht für den Automotive-Bereich bestimmt sind -\njeweils die zum Zeitpunkt der Deklaration gültige Version"]
[5,"ELV Richtlinie 2000/53/EG über Altfahrzeuge - gilt nur für Zukaufprodukte die in Schaeffler Verkaufsprodukten im Automotive-Bereich verwendet werden sollen -\njeweils die zum Zeitpunkt der Deklaration gültige Version"]
[6,"RoHS Richtlinie 2011/65/EU (ehemals 2002/95/EG) zur Beschränkung der Verwendung bestimmter gefährlicher Stoffe in Elektro- und Elektronikgeräten\n- gilt nur für Zukaufprodukte die in Schaeffler Verkaufsprodukten, aber nicht im Automotive-Bereich verwendet werden sollen - jeweils die zum Zeitpunkt der Deklaration gültige Version"]
[7,"Weitere Vorgaben für Chemikalien & Gemische für den Einsatz in Fertigung, Instandhaltung und Schaeffler Verkaufsprodukten\n- gilt nicht für Halbzeuge & Erzeugnisse an sich -",null,"-","-","-","-"]
[null,"VKIS-VSI-BGHM-Stoffliste \n- sinngemäß gültig für alle Chemikalien und Gemische -","-","-","c)","www.vsi-schmierstoffe.de","z.B. in Korrosionsschutzmitteln, Schmierstoffen, Galvanochemikalien"]
[]
[null,"Phenol","108-95-2","P","20 ppm","-","-"]
[null,"Kupfer und seine Verbindungen","-","P","10 ppm","Verbot nur für Metallbearbeitungs-flüssigkeiten; darüberhinaus gilt die VKIS-VSI-IGM-Stoffliste"]
[null,null,null,null,null,"www.vsi-schmierstoffe.de"]
[null,"Benzotriazol","95-14-7","D","a)","allergenes Potential","z.B. Kühlschmierstoffe, Korrosionsschutzmittel"]
[null,"Metalle und ihre Verbindungen (Cu, As, Pb, Hg, Cd, Cr(VI), Ni, Sn, Be, Co, Ti, Sb, Mo, Zn)","-","D","jeweils 10 ppm","-","-"]
[null,"Kolophonium","-","D",null,"-","-"]
[null,"Perfluor-Verbindungen","-","D","a)","-","-"]
[null,"Polyalkylenglykole","-","D","a)","-","-"]
[null,"Chloride","-","D","20 ppm","-","-"]
[8,"Weitere Vorgaben für Verpackungen \n- gilt für alle Verpackungsmaterialien für die Produktion und für Schaeffler Verkaufsprodukte, sofern die Verpackung nicht an den Lieferanten zurück geht -",null,"-",null,"-"]
[null,"Blei, Kadmium, Quecksilber, Chrom(VI) \nin Verpackungen",null,"P","Summe aus allen 4 Elementen max. 100 ppm ","Verpackungsmittelrichtlinie 94/62/EG","z.B. Verpackungen aus Kunststoff, Verpackungen mit Farben und Lacken"]
[null,"Arsenverbindungen",null,"P","a)","Richtlinie 76/769/EWG","z.B. Verpackungen aus Holz"]
[null,"Dimethylfumarat (DMF)","624-49-7","P","1 mg/kg","Entscheidung 2009/251/EG","z.B. Verpackungen aus Holz, Kunststoff oder mit Farben, Lacken"]
["Fußnoten:\na) Grenzwert 0,1% w/w (1000 ppm) im homogenen Material, sofern nichts anderes angegeben ist. Wird in der jeweils angegebenen legalen Regelung ein strengerer Grenzwert gefordert, ist dieser gültig!"]
["b) Hinweis: Diese Vorgaben der CLP Verordnung (EG) Nr. 1272/2008 sind relevant für Stoffe mit der genannten Einstufung und Gemische die diese Stoffe enthalten. Sie sind nicht relevant für Erzeugnisse, die einen solchen Stoff enthalten. Berücksichtigungsgrenze gemäß Kennzeichnungspflicht nach EU-Chemikalienrecht, siehe CLP Verordnung (EG) Nr. 1272/2008 Anhang VI (Anhang I der Richtlinie 67/548/EWG)"]
["c) Vorgabe von VKIS-VSI-BGHM-Liste"]

{"sheet":"DE_EN","index":4,"n_rows":83,"n_cols":4,"rows_kept":83,"cut":false,"hidden":false,"merged":[]}
["ausg","de","en",1]
[]
[null,"Lieferantennachweis zu","Supplier declaration for "]
[null,"Bitte alle Felder direkt in diesem Excel Formular befüllen.","Please fill out all fields directly in this excel form"]
[null,"Stoffliste mit Einzelstoffbeschränkungen siehe Registerblatt \"Stoffliste\"","Substance list with individual substance restrictions see register sheet \"Substance list\""]
[null,"Erklärung und Hilfestellung siehe Registerblatt \"Hilfestellung\"","Explanation and Help see register sheet \"Help\""]
[null,"Basisinformation ","Basic Information"]
[null,"Pflichtfelder","mandatory fields"]
[null,"Nummer","number"]
[null,"Lieferantenname","Supplier name"]
[null,"Produkt","product"]
[null,"Produkte","products"]
[null,"Lieferant ","Supplier"]
[null,"Lieferanten","suppliers"]
[null,"Materialnummer","Material number"]
[null,"Produktbezeichnung","product name"]
[null,"Bezeichnung","designation"]
[null,"Liste der Zukaufprodukte","list of purchased products"]
[null,"Zeichnungsnummer","drawing number"]
[null,"Materialnummer","material number"]
[null,"Steller","digit"]
[null,"falls","if"]
[null,"vorhanden","available"]
[null,"Soll dieses Formular für mehrere Produkte ausgefüllt werden, steht ein weiteres Excel-Tabellenblatt zur Verfügung","A second Excel sheet is provided for completing this form for a number of products"]
[null,"Eine eindeutige Identifikation des Zukaufs muss hier erfolgen, selbst wenn nicht alle Felder befüllbar sind.","Even if not all cells are possible to be completed, there has to be a clear identification of the purchase. "]
[null,"Ansprechpartner\n\n","contact   "]
[null,"Kontakt (Email, Telefon):","Contact data (Email, phone number):"]
[null,"Datum","date"]
[null,"Konformitätserklärung","Declaration of conformity"]
[null,"Unterschrift, ggf. Stempel:","Signature, stamp (where available)"]
[null,"Kategorie","category"]
[null,"Zukauf","purchase"]
[null,"verbleibt in oder an Schaeffler Verkaufsprodukten ","stays in or on Schaeffler saleable products"]
[null,"wird in Fertigungsprozessen & der Instandhaltung eingesetzt, aber nicht in Schaeffler Verkaufsprodukten verbleibend","is used in manufacturing & maintenance, but not in Schaeffler saleble products"]
[null,"mit welchem Schaeffler Produkte umhüllt, weiterverwendet, transportiert, gelagert und/oder geschützt werden.","Schaeffler products are wrapped, processed further, transported, stored and/or protected"]
[null,"Packmittel","packaging material"]
[null,"Anforderungen","requirements"]
[null,"für","for"]
[null,"Nr.","no."]
[null,"Ist die Anforderung für den Zukauf anzuwenden","Does the requirement apply to the purchase"]
[null,"Entspricht der Zukauf der Anforderung","Does the purchase comply with the requirement"]
[null,"Die geltende Kategorie ist mit dem entsprechenden Schaeffler Kontakt (Einkauf, Stoffverantwortung oder Anwendungstechnik) zu klären","The applicable category has to be agreed upon with the respective Schaeffler contact (purchase, material expert, Application engineering)"]
[null," Berichtsformat für Informations- und Deklarationspflichten ","reporting format for information and declaration obligations"]
[null,"Auswahl","selection"]
[null,"Auswahl Kategorie","Select category"]
[null,"benutzen","use"]
[null,"ja","yes"]
[null,"nein","no "]
[null,"Grundsatzverbote\n","Principle prohibitions"]
[null,"gilt auch für ","also valid for"]
[null,"Stoffbeschränkungen\n","Substance restrictions"]
[null,"inkl. ","incl. "]
[null,"Anh.","Annex"]
[null,"REACh VO (EG)","REACh Reg. (EC)"]
[null,"Anforderung","requirement"]
[null,"Anforderungen","requirements"]
[null,"Anforderungen der GADSL","requirements of the GADSL"]
[null,"beinhaltet unter anderem Berichterstattung von SVHC, Anhang XVII  Verbote und Zulassungsplichten nach Anhang XIV, sowie Plichten zur Registreriung von Stoffen","includes the reporting obligation for SVHC, prohibitions according to Annex XVII, prohibitions and the obligation for authorization according to Annex XIV, as well as the registration requirements for substances"]
[null,"Zukaufprodukte","purchased goods"]
[null,"gilt als Referenzliste auch wenn Produkte nicht für die Automobilindustrie bestimmt sind","is treated as reference even if products are not intended for the Automotive industry"]
[null,"Weitere Vorgaben  \n","Further requirements"]
[null,"für Chemikalien und Gemische","for chemicals and mixtures"]
[null,"für den Einsatz in Fertigung, Instandhaltung und in Schaeffler Produkten","for the use in manufacturing processes, maintenance and in saleable Schaeffler products"]
[null,"gilt nicht für Halbzeuge & Erzeugnisse an sich","not applicable for semi-finished products and articles"]
[null,"Keine Stoffe zu deklarieren","no declarable substances"]
[null,"unten","below"]
[null,"Deklaration","declaration  "]
[null,"sofern das Packmittel nicht an den Lieferanten zurück geht","only if the packing material is not returned to the supplier"]
[null,"Zu deklarierende Inhaltsstoffe ","Declarable substances"]
[null,"gemäß Registerblatt Stoffliste ","according to register sheet substance list"]
[null,"Stand 29.11.2018","with the status of November 29, 2018"]
[null,"z.B.","e.g."]
[null,"andere Identifikationsnummer nur wenn keine CAS vorhanden","different idenfication number only if CAS not available"]
[null,"Stoffmenge"]
[null,"Einheit gemäß Stoffliste","Unit acc. to substance list"]
[null,"Di-(2-ethylhexyl)phthalat","Di-(2-ethylhexyl)phthalate"]
[null,"Elastomerdichtung","elastomer seal"]
[null,"bei Stoffverboten","for substance restrictions"]
[null,"Begründung","source"]
[null,"betroffenes Material im Erzeugnis","affected material in the product"]
[null,"oder ELV-Ausnahme","or ELV-exemption"]
[null,"bei Chemikalien & Gemischen: Analysenmethode","for chemicals & mixtures: analytical method"]
[null,"Anmerkungen","remarks"]